[Event "*** SCC Grand Prix: Titled Tuesday Blitz"]
[Site "Chess.com"]
[Date "2020.06.02"]
[Round "10"]
[White "Konovalova_Vera"]
[Black "Forantes"]
[Result "0-1"]
[WhiteElo "2143"]
[BlackElo "2291"]
[TimeControl "180+1"]
[EndTime "11:59:00 PDT"]
[Termination "Forantes won by resignation"]

1. d4 {[%clk 0:03:00.9]} 1... Nf6 {[%clk 0:02:59.8]} 2. Nf3 {[%clk 0:02:59.8]}
2... g6 {[%clk 0:03:00.1]} 3. Bg5 {[%clk 0:02:58]} 3... Ne4 {[%clk 0:02:59.9]}
4. Bh4 {[%clk 0:02:55.9]} 4... d5 {[%clk 0:03:00.1]} 5. Nbd2 {[%clk 0:02:55.3]}
5... Bg7 {[%clk 0:03:00.2]} 6. e3 {[%clk 0:02:55.1]} 6... O-O {[%clk 0:02:59.6]}
7. Bd3 {[%clk 0:02:54.8]} 7... Nd6 {[%clk 0:02:59]} 8. O-O {[%clk 0:02:53.4]}
8... c5 {[%clk 0:02:53.9]} 9. dxc5 {[%clk 0:02:50.4]} 9... Nf5 {[%clk
0:02:52.9]} 10. Rb1 {[%clk 0:02:43.4]} 10... Nc6 {[%clk 0:02:52.9]} 11. Bg3
{[%clk 0:02:41.2]} 11... Qa5 {[%clk 0:02:49.2]} 12. Nb3 {[%clk 0:02:31.1]} 12...
Qxa2 {[%clk 0:02:44.5]} 13. Bxf5 {[%clk 0:02:29.5]} 13... Bxf5 {[%clk
0:02:43.7]} 14. Nfd4 {[%clk 0:02:18.6]} 14... Nxd4 {[%clk 0:02:13.2]} 15. Nxd4
{[%clk 0:02:11.1]} 15... Bd7 {[%clk 0:02:00.3]} 16. b3 {[%clk 0:01:46.9]} 16...
Qa5 {[%clk 0:01:49.8]} 17. b4 {[%clk 0:01:44.5]} 17... Qa2 {[%clk 0:01:49.4]}
18. Qd3 {[%clk 0:01:36.3]} 18... e5 {[%clk 0:01:18.8]} 19. Nb3 {[%clk
0:01:23.9]} 19... Bf5 {[%clk 0:01:18.1]} 20. Qc3 {[%clk 0:00:54.1]} 20... Qxc2
{[%clk 0:01:10.9]} 21. Rbc1 {[%clk 0:00:48.5]} 21... Qxc3 {[%clk 0:01:10.3]} 22.
Rxc3 {[%clk 0:00:48.7]} 22... Rfd8 {[%clk 0:01:10.3]} 23. Rd1 {[%clk 0:00:47.6]}
23... d4 {[%clk 0:01:03.4]} 24. exd4 {[%clk 0:00:46]} 24... exd4 {[%clk
0:01:04.3]} 25. Rcc1 {[%clk 0:00:44.6]} 25... d3 {[%clk 0:00:40.6]} 26. b5
{[%clk 0:00:37.4]} 26... Rac8 {[%clk 0:00:31.7]} 27. c6 {[%clk 0:00:34.4]} 27...
bxc6 {[%clk 0:00:31.5]} 28. Rxc6 {[%clk 0:00:25.1]} 28... Be6 {[%clk 0:00:12.7]}
29. Nc5 {[%clk 0:00:21]} 29... Bc4 {[%clk 0:00:09.4]} 30. Rxc8 {[%clk
0:00:15.5]} 30... Rxc8 {[%clk 0:00:09.7]} 31. Nxd3 {[%clk 0:00:13.8]} 31... Bxd3
{[%clk 0:00:10]} 32. f3 {[%clk 0:00:11.3]} 32... Bxb5 {[%clk 0:00:08.7]} 33. Rb1
{[%clk 0:00:10.1]} 33... Bd4+ {[%clk 0:00:08]} 34. Kh1 {[%clk 0:00:08.6]} 34...
Be3 {[%clk 0:00:07.7]} 35. Be1 {[%clk 0:00:05.7]} 35... Rc1 {[%clk 0:00:07.4]}
36. Rxc1 {[%clk 0:00:05.7]} 36... Bxc1 {[%clk 0:00:08.3]} 37. g3 {[%clk
0:00:05]} 37... a6 {[%clk 0:00:06.7]} 38. Ba5 {[%clk 0:00:04.8]} 38... Be3
{[%clk 0:00:07.2]} 39. Kg2 {[%clk 0:00:05.1]} 39... f5 {[%clk 0:00:07.7]} 40. f4
{[%clk 0:00:05.2]} 40... Kg7 {[%clk 0:00:08]} 41. Kf3 {[%clk 0:00:05.6]} 41...
Bc5 {[%clk 0:00:08.1]} 42. h3 {[%clk 0:00:05.7]} 42... Kf7 {[%clk 0:00:08.4]}
43. g4 {[%clk 0:00:05.4]} 43... Bc6+ {[%clk 0:00:08.8]} 44. Ke2 {[%clk
0:00:04.6]} 44... Be4 {[%clk 0:00:09.4]} 45. h4 {[%clk 0:00:03.5]} 45... Ke6
{[%clk 0:00:09.6]} 46. g5 {[%clk 0:00:03.4]} 46... Kd5 {[%clk 0:00:09.8]} 47.
Kd2 {[%clk 0:00:02.5]} 47... Kd4 {[%clk 0:00:10.3]} 0-1

[Event "*** SCC Grand Prix: Titled Tuesday Blitz"]
[Site "Chess.com"]
[Date "2020.06.02"]
[Round "10"]
[White "Twitch_ElhamBlitz05"]
[Black "Dynamikus"]
[Result "0-1"]
[WhiteElo "2675"]
[BlackElo "2779"]
[TimeControl "180+1"]
[EndTime "11:59:03 PDT"]
[Termination "Dynamikus won on time"]

1. e4 {[%clk 0:02:52.7]} 1... c5 {[%clk 0:02:58.5]} 2. Nf3 {[%clk 0:02:50]} 2...
d6 {[%clk 0:02:58.9]} 3. d4 {[%clk 0:02:47.5]} 3... cxd4 {[%clk 0:02:59.8]} 4.
Nxd4 {[%clk 0:02:44]} 4... Nf6 {[%clk 0:02:58.5]} 5. f3 {[%clk 0:02:43.9]} 5...
a6 {[%clk 0:02:59.4]} 6. c4 {[%clk 0:02:43.7]} 6... e6 {[%clk 0:02:59]} 7. Nc3
{[%clk 0:02:43.3]} 7... b6 {[%clk 0:02:59]} 8. Be3 {[%clk 0:02:42.9]} 8... Bb7
{[%clk 0:02:59.6]} 9. Qd2 {[%clk 0:02:43.1]} 9... Nbd7 {[%clk 0:03:00.4]} 10.
Be2 {[%clk 0:02:43.4]} 10... Be7 {[%clk 0:03:01.1]} 11. O-O {[%clk 0:02:37.5]}
11... O-O {[%clk 0:03:01.6]} 12. Rfd1 {[%clk 0:02:37.4]} 12... Qc7 {[%clk
0:03:01.5]} 13. Rac1 {[%clk 0:02:37.9]} 13... Rac8 {[%clk 0:03:01.8]} 14. b3
{[%clk 0:02:37.9]} 14... Rfe8 {[%clk 0:03:01.9]} 15. Bf2 {[%clk 0:02:27.3]}
15... Qb8 {[%clk 0:03:02.5]} 16. b4 {[%clk 0:02:23.1]} 16... d5 {[%clk
0:02:52.1]} 17. cxd5 {[%clk 0:02:17.5]} 17... Bxb4 {[%clk 0:01:55.2]} 18. dxe6
{[%clk 0:02:12.6]} 18... fxe6 {[%clk 0:01:56.1]} 19. Qb2 {[%clk 0:02:10]} 19...
Bd6 {[%clk 0:01:53.9]} 20. g3 {[%clk 0:02:06.2]} 20... b5 {[%clk 0:01:54]} 21.
Nb3 {[%clk 0:01:52.8]} 21... Be5 {[%clk 0:01:51.8]} 22. Qd2 {[%clk 0:01:50.1]}
22... Red8 {[%clk 0:01:51.7]} 23. Qe1 {[%clk 0:01:49.7]} 23... h6 {[%clk
0:01:44.5]} 24. Bf1 {[%clk 0:01:42.8]} 24... Nf8 {[%clk 0:01:38.1]} 25. Ne2
{[%clk 0:01:41.2]} 25... Rxd1 {[%clk 0:01:34.6]} 26. Rxd1 {[%clk 0:01:41.2]}
26... Rc2 {[%clk 0:01:31.7]} 27. Ned4 {[%clk 0:01:39.1]} 27... Bxd4 {[%clk
0:01:27.6]} 28. Nxd4 {[%clk 0:01:35.4]} 28... Rxa2 {[%clk 0:01:26.9]} 29. Qc3
{[%clk 0:01:32.2]} 29... Bxe4 {[%clk 0:01:19.9]} 30. fxe4 {[%clk 0:01:24.1]}
30... Nxe4 {[%clk 0:01:20.8]} 31. Qb3 {[%clk 0:01:24.6]} 31... Rxf2 {[%clk
0:01:10]} 32. Nxe6 {[%clk 0:01:23.2]} 32... Kh8 {[%clk 0:01:02.5]} 33. Qe3
{[%clk 0:00:45.3]} 33... Nxe6 {[%clk 0:00:47.9]} 34. Qxe4 {[%clk 0:00:45.3]}
34... Rf6 {[%clk 0:00:48]} 35. Bd3 {[%clk 0:00:33.9]} 35... Nf8 {[%clk
0:00:42.1]} 36. Bb1 {[%clk 0:00:29.7]} 36... b4 {[%clk 0:00:39.7]} 37. Kg2
{[%clk 0:00:24.9]} 37... a5 {[%clk 0:00:37.2]} 38. Rd7 {[%clk 0:00:12]} 38... a4
{[%clk 0:00:27]} 39. Re7 {[%clk 0:00:10.8]} 39... Qd6 {[%clk 0:00:22.8]} 40. Re8
{[%clk 0:00:08]} 40... g6 {[%clk 0:00:22.7]} 41. Qa8 {[%clk 0:00:05.3]} 41...
Kg7 {[%clk 0:00:16.2]} 42. Qb7+ {[%clk 0:00:04.6]} 42... Rf7 {[%clk 0:00:15.9]}
43. Qe4 {[%clk 0:00:05]} 43... b3 {[%clk 0:00:13.6]} 44. Qxa4 {[%clk 0:00:03.8]}
44... b2 {[%clk 0:00:10.8]} 45. Qc2 {[%clk 0:00:02.5]} 45... Qf6 {[%clk
0:00:11.4]} 46. Re1 {[%clk 0:00:02.2]} 46... Ne6 {[%clk 0:00:09.6]} 47. Qe2
{[%clk 0:00:01.9]} 47... Ng5 {[%clk 0:00:09.1]} 48. h3 {[%clk 0:00:01.3]} 48...
Qc6+ {[%clk 0:00:09.7]} 49. Kh2 {[%clk 0:00:01.8]} 49... Nf3+ {[%clk 0:00:09.6]}
50. Kh1 {[%clk 0:00:01.6]} 50... Nxe1+ {[%clk 0:00:10.4]} 51. Be4 {[%clk
0:00:01.4]} 51... b1=Q {[%clk 0:00:08.9]} 0-1

[Event "*** SCC Grand Prix: Titled Tuesday Blitz"]
[Site "Chess.com"]
[Date "2020.06.02"]
[Round "10"]
[White "ketster"]
[Black "verdest"]
[Result "1-0"]
[WhiteElo "2443"]
[BlackElo "2558"]
[TimeControl "180+1"]
[EndTime "11:59:05 PDT"]
[Termination "ketster won on time"]

1. d4 {[%clk 0:03:00.9]} 1... Nf6 {[%clk 0:02:58.8]} 2. c4 {[%clk 0:03:00.3]}
2... e6 {[%clk 0:02:58.9]} 3. g3 {[%clk 0:02:58.8]} 3... d5 {[%clk 0:02:59.3]}
4. Bg2 {[%clk 0:02:58.6]} 4... Bb4+ {[%clk 0:02:59.4]} 5. Bd2 {[%clk 0:02:58.1]}
5... Be7 {[%clk 0:02:59.1]} 6. Nf3 {[%clk 0:02:58]} 6... O-O {[%clk 0:02:58.7]}
7. O-O {[%clk 0:02:56.6]} 7... c6 {[%clk 0:02:58.8]} 8. Qc2 {[%clk 0:02:56.5]}
8... Nbd7 {[%clk 0:02:59]} 9. a3 {[%clk 0:02:56.3]} 9... b6 {[%clk 0:02:56.3]}
10. cxd5 {[%clk 0:02:55]} 10... cxd5 {[%clk 0:02:55.6]} 11. Rc1 {[%clk
0:02:55.1]} 11... Ba6 {[%clk 0:02:52]} 12. Qd1 {[%clk 0:02:45.6]} 12... Ne4
{[%clk 0:02:48.6]} 13. Bb4 {[%clk 0:02:44.8]} 13... h6 {[%clk 0:02:24.4]} 14.
Bf1 {[%clk 0:02:36.5]} 14... Nd6 {[%clk 0:02:07.2]} 15. Nc3 {[%clk 0:02:24.4]}
15... Rc8 {[%clk 0:02:04.4]} 16. Qa4 {[%clk 0:02:21.6]} 16... Nb8 {[%clk
0:01:29.3]} 17. Ne5 {[%clk 0:02:15.3]} 17... Nc4 {[%clk 0:01:14.9]} 18. Nxc4
{[%clk 0:02:00.9]} 18... dxc4 {[%clk 0:01:05.4]} 19. e3 {[%clk 0:01:48.7]} 19...
Bxb4 {[%clk 0:00:54.3]} 20. axb4 {[%clk 0:01:45.8]} 20... Qc7 {[%clk 0:00:53.7]}
21. b5 {[%clk 0:01:42.7]} 21... Bb7 {[%clk 0:00:52.6]} 22. Qxa7 {[%clk
0:01:34.5]} 22... Nd7 {[%clk 0:00:29]} 23. Bg2 {[%clk 0:01:29.5]} 23... Rb8
{[%clk 0:00:25.1]} 24. Bxb7 {[%clk 0:01:25.6]} 24... Rxb7 {[%clk 0:00:26]} 25.
Qa4 {[%clk 0:01:24.4]} 25... Nf6 {[%clk 0:00:23.6]} 26. Ne2 {[%clk 0:01:19.5]}
26... Rc8 {[%clk 0:00:23.2]} 27. b3 {[%clk 0:01:15.4]} 27... Ne4 {[%clk
0:00:16.8]} 28. bxc4 {[%clk 0:01:04.9]} 28... Qe7 {[%clk 0:00:12.4]} 29. Nf4
{[%clk 0:00:54.2]} 29... Rbc7 {[%clk 0:00:10.4]} 30. Qc2 {[%clk 0:00:42.1]}
30... Nd6 {[%clk 0:00:09.3]} 31. c5 {[%clk 0:00:23.8]} 31... bxc5 {[%clk
0:00:08.1]} 32. b6 {[%clk 0:00:23.1]} 32... Rb7 {[%clk 0:00:05.1]} 33. dxc5
{[%clk 0:00:22.1]} 33... Nf5 {[%clk 0:00:04.2]} 34. Rab1 {[%clk 0:00:17.2]}
34... Rc6 {[%clk 0:00:03.7]} 35. Qa4 {[%clk 0:00:16.2]} 35... Qd7 {[%clk
0:00:01.5]} 36. Rd1 {[%clk 0:00:14.4]} 36... Qc8 {[%clk 0:00:01.3]} 37. Nd3
{[%clk 0:00:12.8]} 37... Ne7 {[%clk 0:00:01.4]} 38. Rbc1 {[%clk 0:00:12.4]}
38... Nd5 {[%clk 0:00:01.5]} 39. Qb5 {[%clk 0:00:11.1]} 39... Kh7 {[%clk
0:00:00.9]} 40. Ne5 {[%clk 0:00:11]} 1-0

[Event "*** SCC Grand Prix: Titled Tuesday Blitz"]
[Site "Chess.com"]
[Date "2020.06.02"]
[Round "10"]
[White "vaishali2001"]
[Black "ElGasanov"]
[Result "0-1"]
[WhiteElo "2628"]
[BlackElo "2752"]
[TimeControl "180+1"]
[EndTime "11:59:07 PDT"]
[Termination "ElGasanov won on time"]

1. e4 {[%clk 0:02:58.7]} 1... c5 {[%clk 0:03:00.5]} 2. Nc3 {[%clk 0:02:56.9]}
2... g6 {[%clk 0:02:58.6]} 3. Nge2 {[%clk 0:02:55]} 3... Bg7 {[%clk 0:02:57.6]}
4. g3 {[%clk 0:02:55.3]} 4... Nc6 {[%clk 0:02:57]} 5. Bg2 {[%clk 0:02:55.8]}
5... d6 {[%clk 0:02:56.4]} 6. d3 {[%clk 0:02:56.4]} 6... e5 {[%clk 0:02:56.7]}
7. Be3 {[%clk 0:02:52.4]} 7... Nge7 {[%clk 0:02:57.2]} 8. Qd2 {[%clk 0:02:52.4]}
8... O-O {[%clk 0:02:57.1]} 9. h4 {[%clk 0:02:50.3]} 9... h5 {[%clk 0:02:47.6]}
10. Bh6 {[%clk 0:02:48.8]} 10... Nd4 {[%clk 0:02:44.7]} 11. Nxd4 {[%clk
0:02:45.3]} 11... cxd4 {[%clk 0:02:45.2]} 12. Ne2 {[%clk 0:02:45.6]} 12... d5
{[%clk 0:02:45.7]} 13. O-O-O {[%clk 0:02:32.8]} 13... dxe4 {[%clk 0:02:43.6]}
14. Bxe4 {[%clk 0:02:33.7]} 14... Be6 {[%clk 0:02:38.2]} 15. Kb1 {[%clk
0:02:32.2]} 15... Bd5 {[%clk 0:02:19.9]} 16. Bxg7 {[%clk 0:01:54.8]} 16... Kxg7
{[%clk 0:02:19.7]} 17. f4 {[%clk 0:01:55]} 17... f6 {[%clk 0:01:50.2]} 18. Rdf1
{[%clk 0:01:11.7]} 18... Qd7 {[%clk 0:01:41.2]} 19. fxe5 {[%clk 0:01:04.7]}
19... fxe5 {[%clk 0:01:41.6]} 20. Qg5 {[%clk 0:01:03.6]} 20... Qe6 {[%clk
0:01:41.9]} 21. a3 {[%clk 0:00:54.4]} 21... Rf6 {[%clk 0:01:08.3]} 22. g4 {[%clk
0:00:39.6]} 22... Bxe4 {[%clk 0:00:58.7]} 23. dxe4 {[%clk 0:00:38.1]} 23... Raf8
{[%clk 0:00:58.8]} 24. Rfg1 {[%clk 0:00:28.7]} 24... Rf2 {[%clk 0:00:31.5]} 25.
Ng3 {[%clk 0:00:20.7]} 25... hxg4 {[%clk 0:00:29]} 26. h5 {[%clk 0:00:15.7]}
26... Qf6 {[%clk 0:00:26.2]} 27. Qxf6+ {[%clk 0:00:09.2]} 27... R8xf6 {[%clk
0:00:22.5]} 28. hxg6 {[%clk 0:00:09.1]} 28... Rxg6 {[%clk 0:00:21.5]} 29. Rh5
{[%clk 0:00:08.6]} 29... Nc6 {[%clk 0:00:18.1]} 30. Nf5+ {[%clk 0:00:08.2]}
30... Kf6 {[%clk 0:00:14.5]} 31. Rh8 {[%clk 0:00:08.2]} 31... g3 {[%clk
0:00:12]} 32. Rxg3 {[%clk 0:00:06.3]} 32... Rxg3 {[%clk 0:00:09.7]} 33. Nxg3
{[%clk 0:00:07.2]} 33... Kg5 {[%clk 0:00:08.9]} 34. Rg8+ {[%clk 0:00:05.9]}
34... Kf4 {[%clk 0:00:07.5]} 35. Nf5 {[%clk 0:00:03.5]} 35... Kxe4 {[%clk
0:00:07.4]} 36. Nd6+ {[%clk 0:00:03.6]} 36... Ke3 {[%clk 0:00:07.5]} 37. Nxb7
{[%clk 0:00:04.1]} 37... e4 {[%clk 0:00:07.5]} 38. Nc5 {[%clk 0:00:03.7]} 38...
Rf1+ {[%clk 0:00:06.8]} 39. Ka2 {[%clk 0:00:02.9]} 39... Ne5 {[%clk 0:00:07.3]}
40. Rg3+ {[%clk 0:00:02.2]} 40... Nf3 {[%clk 0:00:07]} 41. Rg4 {[%clk
0:00:02.7]} 41... Nd2 {[%clk 0:00:06.6]} 42. Rg3+ {[%clk 0:00:02.1]} 42... Rf3
{[%clk 0:00:07.1]} 43. Rg4 {[%clk 0:00:02]} 43... Rf4 {[%clk 0:00:06.2]} 44.
Rg3+ {[%clk 0:00:01.8]} 44... Kf2 {[%clk 0:00:06.8]} 45. Rg5 {[%clk 0:00:01.7]}
45... Ke2 {[%clk 0:00:06.1]} 46. Rd5 {[%clk 0:00:01.3]} 46... e3 {[%clk
0:00:06.7]} 47. b4 {[%clk 0:00:01]} 47... Ne4 {[%clk 0:00:06.1]} 0-1

[Event "*** SCC Grand Prix: Titled Tuesday Blitz"]
[Site "Chess.com"]
[Date "2020.06.02"]
[Round "10"]
[White "peixe64"]
[Black "Mikasinski"]
[Result "1/2-1/2"]
[WhiteElo "2263"]
[BlackElo "2461"]
[TimeControl "180+1"]
[EndTime "11:59:07 PDT"]
[Termination "Game drawn - insufficient material"]

1. d4 {[%clk 0:03:00.9]} 1... Nf6 {[%clk 0:02:59.8]} 2. c4 {[%clk 0:03:01.3]}
2... g6 {[%clk 0:02:59.5]} 3. Nc3 {[%clk 0:03:01.6]} 3... Bg7 {[%clk 0:03:00.1]}
4. e4 {[%clk 0:03:01.9]} 4... d6 {[%clk 0:03:00.7]} 5. h3 {[%clk 0:03:02]} 5...
O-O {[%clk 0:03:01.2]} 6. Be3 {[%clk 0:03:02.4]} 6... Nc6 {[%clk 0:03:00.9]} 7.
g4 {[%clk 0:03:02.4]} 7... e5 {[%clk 0:03:00.1]} 8. d5 {[%clk 0:03:02.6]} 8...
Nd4 {[%clk 0:03:00.5]} 9. Bg2 {[%clk 0:02:59.3]} 9... c5 {[%clk 0:02:58.5]} 10.
Nge2 {[%clk 0:02:52.4]} 10... h5 {[%clk 0:02:56.3]} 11. f3 {[%clk 0:02:25.8]}
11... Rb8 {[%clk 0:02:49.7]} 12. a4 {[%clk 0:02:20.1]} 12... Qa5 {[%clk
0:02:45.7]} 13. O-O {[%clk 0:02:00.5]} 13... Qb4 {[%clk 0:02:34.1]} 14. Nb5
{[%clk 0:01:43.7]} 14... Qxc4 {[%clk 0:02:22.9]} 15. Nexd4 {[%clk 0:01:31.9]}
15... cxd4 {[%clk 0:02:19.1]} 16. Nxd6 {[%clk 0:01:19.6]} 16... Qc5 {[%clk
0:01:55.6]} 17. Nxc8 {[%clk 0:01:19.1]} 17... dxe3 {[%clk 0:01:55.5]} 18. Rc1
{[%clk 0:01:15.1]} 18... e2+ {[%clk 0:01:43.6]} 19. Rxc5 {[%clk 0:01:14.8]}
19... exd1=Q {[%clk 0:01:43.3]} 20. Ne7+ {[%clk 0:01:14.9]} 20... Kh7 {[%clk
0:01:40.5]} 21. Rxd1 {[%clk 0:01:15]} 21... Rfd8 {[%clk 0:01:22.7]} 22. d6
{[%clk 0:00:36.5]} 22... Ne8 {[%clk 0:01:15.8]} 23. d7 {[%clk 0:00:29.4]} 23...
hxg4 {[%clk 0:00:43.7]} 24. hxg4 {[%clk 0:00:28.6]} 24... Bf6 {[%clk 0:00:30]}
25. Nd5 {[%clk 0:00:19.7]} 25... Rxd7 {[%clk 0:00:26.7]} 26. Nxf6+ {[%clk
0:00:18.5]} 26... Nxf6 {[%clk 0:00:26.8]} 27. Rxd7 {[%clk 0:00:19.1]} 27... Nxd7
{[%clk 0:00:27.2]} 28. Rd5 {[%clk 0:00:19.7]} 28... Nb6 {[%clk 0:00:20.6]} 29.
Rxe5 {[%clk 0:00:20.1]} 29... Nxa4 {[%clk 0:00:20.6]} 30. b3 {[%clk 0:00:19.9]}
30... Nc3 {[%clk 0:00:19.7]} 31. Kf2 {[%clk 0:00:18]} 31... Kg7 {[%clk
0:00:17.2]} 32. Re7 {[%clk 0:00:18.4]} 32... a5 {[%clk 0:00:13.9]} 33. Bf1
{[%clk 0:00:18.4]} 33... Na2 {[%clk 0:00:12.8]} 34. Bc4 {[%clk 0:00:17.4]} 34...
b5 {[%clk 0:00:10.4]} 35. Rxf7+ {[%clk 0:00:17.8]} 35... Kh8 {[%clk 0:00:07.7]}
36. Bd5 {[%clk 0:00:17.7]} 36... Nc3 {[%clk 0:00:07.5]} 37. Be6 {[%clk
0:00:17.2]} 37... a4 {[%clk 0:00:06.3]} 38. bxa4 {[%clk 0:00:16.8]} 38... bxa4
{[%clk 0:00:06.8]} 39. Rc7 {[%clk 0:00:15.5]} 39... Nb5 {[%clk 0:00:04.7]} 40.
Rc8+ {[%clk 0:00:13.8]} 40... Rxc8 {[%clk 0:00:04.9]} 41. Bxc8 {[%clk
0:00:14.7]} 41... a3 {[%clk 0:00:05.2]} 42. Be6 {[%clk 0:00:15]} 42... Kg7
{[%clk 0:00:05.6]} 43. Ke3 {[%clk 0:00:13.6]} 43... Kf6 {[%clk 0:00:05.9]} 44.
Bb3 {[%clk 0:00:13.1]} 44... g5 {[%clk 0:00:05.9]} 45. f4 {[%clk 0:00:12.8]}
45... gxf4+ {[%clk 0:00:06.1]} 46. Kxf4 {[%clk 0:00:13.7]} 46... Nd4 {[%clk
0:00:06.1]} 47. g5+ {[%clk 0:00:13.8]} 47... Kg6 {[%clk 0:00:06.1]} 48. Ba2
{[%clk 0:00:14.5]} 48... Ne2+ {[%clk 0:00:05.9]} 49. Ke3 {[%clk 0:00:13.8]}
49... Nc3 {[%clk 0:00:04.9]} 50. Bc4 {[%clk 0:00:13.4]} 50... Kxg5 {[%clk
0:00:04.7]} 51. Kd3 {[%clk 0:00:13.9]} 51... Nd1 {[%clk 0:00:04.5]} 52. Ba2
{[%clk 0:00:10.8]} 52... Kf4 {[%clk 0:00:03.8]} 53. Kc2 {[%clk 0:00:11.1]} 53...
Ne3+ {[%clk 0:00:02.3]} 54. Kb3 {[%clk 0:00:11.6]} 54... Kxe4 {[%clk 0:00:02.6]}
55. Kxa3 {[%clk 0:00:12.5]} 1/2-1/2

[Event "*** SCC Grand Prix: Titled Tuesday Blitz"]
[Site "Chess.com"]
[Date "2020.06.02"]
[Round "10"]
[White "carlesdc96"]
[Black "Skatchkov_V"]
[Result "0-1"]
[WhiteElo "2729"]
[BlackElo "2568"]
[TimeControl "180+1"]
[EndTime "11:59:09 PDT"]
[Termination "Skatchkov_V won on time"]

1. e4 {[%clk 0:03:00.9]} 1... e5 {[%clk 0:02:59.9]} 2. Nf3 {[%clk 0:02:57.4]}
2... Nf6 {[%clk 0:02:59.4]} 3. Nxe5 {[%clk 0:02:56.5]} 3... d6 {[%clk
0:02:59.2]} 4. Nf3 {[%clk 0:02:56.6]} 4... Nxe4 {[%clk 0:02:58.3]} 5. d3 {[%clk
0:02:57.2]} 5... Nf6 {[%clk 0:02:57.9]} 6. d4 {[%clk 0:02:57.8]} 6... Be7 {[%clk
0:02:58]} 7. Bd3 {[%clk 0:02:57.9]} 7... O-O {[%clk 0:02:58.1]} 8. O-O {[%clk
0:02:58.2]} 8... Bg4 {[%clk 0:02:58.2]} 9. h3 {[%clk 0:02:57.7]} 9... Bh5 {[%clk
0:02:57.8]} 10. Re1 {[%clk 0:02:58]} 10... c6 {[%clk 0:02:55.5]} 11. Nbd2 {[%clk
0:02:57.4]} 11... d5 {[%clk 0:02:52.5]} 12. Nf1 {[%clk 0:02:54.5]} 12... Re8
{[%clk 0:02:50.4]} 13. Ng3 {[%clk 0:02:52.7]} 13... Bg6 {[%clk 0:02:50.7]} 14.
Ne5 {[%clk 0:02:51.8]} 14... Nbd7 {[%clk 0:02:44.8]} 15. f4 {[%clk 0:02:44.2]}
15... Bxd3 {[%clk 0:02:38.8]} 16. Qxd3 {[%clk 0:02:45.1]} 16... Nf8 {[%clk
0:02:36.4]} 17. Bd2 {[%clk 0:02:44]} 17... Qb6 {[%clk 0:02:30.2]} 18. c3 {[%clk
0:02:43.3]} 18... c5 {[%clk 0:02:22]} 19. Nf5 {[%clk 0:02:29]} 19... Ne4 {[%clk
0:02:11.2]} 20. Be3 {[%clk 0:01:44.5]} 20... Qxb2 {[%clk 0:01:48.6]} 21. Rab1
{[%clk 0:01:09.7]} 21... Qxc3 {[%clk 0:01:45]} 22. Qxc3 {[%clk 0:01:09.5]} 22...
Nxc3 {[%clk 0:01:45.9]} 23. Rxb7 {[%clk 0:01:10]} 23... Bf6 {[%clk 0:01:41.8]}
24. Ng4 {[%clk 0:00:51.8]} 24... Bxd4 {[%clk 0:01:38.9]} 25. Ne7+ {[%clk
0:00:44.9]} 25... Kh8 {[%clk 0:01:27.2]} 26. Bxd4 {[%clk 0:00:43.7]} 26... cxd4
{[%clk 0:01:26.9]} 27. Ne5 {[%clk 0:00:43.7]} 27... h6 {[%clk 0:01:16.4]} 28.
Nxf7+ {[%clk 0:00:41.7]} 28... Kh7 {[%clk 0:01:16.6]} 29. Nd6 {[%clk 0:00:42.1]}
29... d3 {[%clk 0:01:13]} 30. Rf1 {[%clk 0:00:15.4]} 30... Rxe7 {[%clk
0:00:38.6]} 31. Rxe7 {[%clk 0:00:14.9]} 31... d2 {[%clk 0:00:39.5]} 32. Nf5
{[%clk 0:00:15.1]} 32... d1=Q {[%clk 0:00:37.5]} 33. Rxd1 {[%clk 0:00:14.4]}
33... Nxd1 {[%clk 0:00:37.9]} 34. Rxg7+ {[%clk 0:00:15.3]} 34... Kh8 {[%clk
0:00:37.5]} 35. Rf7 {[%clk 0:00:15.3]} 35... Nc3 {[%clk 0:00:31.8]} 36. Rf6
{[%clk 0:00:14.8]} 36... Rd8 {[%clk 0:00:27.7]} 37. Rxh6+ {[%clk 0:00:14.2]}
37... Nh7 {[%clk 0:00:27.9]} 38. Nd4 {[%clk 0:00:13.6]} 38... Kg8 {[%clk
0:00:26.9]} 39. Ra6 {[%clk 0:00:11.7]} 39... Rd7 {[%clk 0:00:26.2]} 40. Kf2
{[%clk 0:00:10.8]} 40... Kf7 {[%clk 0:00:25]} 41. g4 {[%clk 0:00:10.7]} 41...
Nf6 {[%clk 0:00:25.2]} 42. f5 {[%clk 0:00:09.8]} 42... Nfe4+ {[%clk 0:00:23.7]}
43. Ke3 {[%clk 0:00:09.2]} 43... Nc5 {[%clk 0:00:17.9]} 44. Rc6 {[%clk 0:00:09]}
44... Re7+ {[%clk 0:00:16.7]} 45. Kf3 {[%clk 0:00:09.3]} 45... N5e4 {[%clk
0:00:12.4]} 46. Ne6 {[%clk 0:00:07.6]} 46... Nb5 {[%clk 0:00:09]} 47. Kf4 {[%clk
0:00:07]} 47... Nbd6 {[%clk 0:00:08.3]} 48. g5 {[%clk 0:00:05.1]} 48... Rb7
{[%clk 0:00:06.3]} 49. Nd4 {[%clk 0:00:03.2]} 49... Ke7 {[%clk 0:00:06.6]} 50.
Ra6 {[%clk 0:00:01.4]} 50... Rb1 {[%clk 0:00:06.3]} 51. Rxa7+ {[%clk 0:00:01.1]}
51... Ke8 {[%clk 0:00:07.2]} 0-1